Cogmind - Beta 14 @@@ ROGUE MODE // 2024.08.28 @ 01:14:52 Player: Lord Draconis Result: Destroyed by H-66 Slayer with Gauss Rifle Performance ------------- Evolutions (4) 2000 Regions Visited (12) 2400 Robots Destroyed (200) 1000 Value Destroyed (6671) 6671 Prototype IDs (10) 200 Alien Tech Used (0) 0 Bonus (3349) 3349 TOTAL SCORE: 15620 Bonus ------- High Alert Combat Kills 985 Follower Combat Kills 2141 Built Enhanced Grunts 300 Met R17 at Cetus 500 Friendly Fire -577 Cogmind --------- Core Integrity 0/850 Matter 223/300 Energy 80/100 System Corruption 16% Temperature Cool (0) Movement Core (50) Location -6/Hub_04(d) Parts ------- > --- POWER (1) -------- (None) > --- PROPULSION (4) --- (None) > --- UTILITY (8) ------ Visual Processing Unit > --- WEAPON (2) ------- (None) > --- INVENTORY (5) ---- Centrium Heavy Treads Hardened Medium Armor Plating Heavy Missile Launcher Precision Grenade Launcher Peak State ------------ > --- POWER ------------ Fission Core > --- PROPULSION ------- Light Treads Improved Medium Treads Centrium Heavy Treads > --- UTILITY ---------- Improved Cooling System Huge Storage Unit Visual Processing Unit Seismic Detector Improved Targeting Computer Improved Light Armor Plating Centrium Medium Armor Plating Light Regenerative Plating > --- WEAPON ----------- Advanced Variable Charge Gun Advanced Variable Charge Gun > --- INVENTORY -------- Reinforced Deuterium Engine Light Angular Momentum Engine Centrium Heavy Treads Improved Heat Sink Medium Matter Pod Hardened Medium Armor Plating Layered Medium Armor Plating Layered Medium Armor Plating Centrium Medium Armor Plating Centrium Medium Armor Plating Tractor Beam Advanced Variable Charge Gun Heavy Particle Cannon Plasma Cannon Heavy Plasma Cannon Gauss Rifle Advanced KE Penetrator Advanced KE Penetrator Magnetic Acceleration Cannon Rocket Launcher Heavy Missile Launcher Precision Grenade Launcher Precision Grenade Launcher Phasing Sabre [Rating: 86] Favorites ----------- Power Light Nuclear Core Engine Ion Engine Power Core Light Nuclear Core Reactor Antimatter Reactor Propulsion Improved Treads Treads Improved Treads Leg Flexi-carbon Leg Wheel Compact Wheel Utility Huge Storage Unit Device Seismic Detector Storage Huge Storage Unit Processor Improved Targeting Computer Protection Hardened Medium Armor Plating Weapon Spread Laser Energy Gun Spread Laser Energy Cannon Plasma Cannon Ballistic Gun Heavy Assault Rifle Ballistic Cannon Light Cannon Launcher Precision Grenade Launcher Slashing Weapon Katana Build | -11 -10 -10 -9 -9 -8 -7 -7 -6 -6 -6 -6 -6 ------- Run | Yrd Mat Min Mat Min Mat Fac Sto Fac Ext Cet Arc Hub Slots Evolved 8 | . . . 2 . 2 2 . 2 . . . . Power . | . . . . . . . . . . . . . Propulsion 2 | . . . 1 . 1 . . . . . . . Utility 6 | . . . 1 . 1 2 . 2 . . . . Weapon . | . . . . . . . . . . . . . Parts Attached 198 | 8 11 7 13 7 12 14 27 16 42 11 8 22 Power 16 | 1 1 1 . 2 1 1 3 1 3 . . 2 Engine 11 | 1 1 . . 2 1 1 1 1 2 . . 1 Core 4 | . . 1 . . . . 2 . 1 . . . Reactor 1 | . . . . . . . . . . . . 1 Propulsion 44 | 2 3 2 5 . 2 3 5 5 11 2 2 2 Treads 31 | 1 2 1 3 . 2 3 4 1 9 1 2 2 Leg 3 | . . . . . . . . 2 . 1 . . Wheel 10 | 1 1 1 2 . . . 1 2 2 . . . Hover . | . . . . . . . . . . . . . Flight . | . . . . . . . . . . . . . Utility 61 | 2 3 1 5 2 4 6 10 4 12 3 2 7 Device 17 | 1 . . 1 . 2 1 3 1 6 . . 2 Storage 4 | 1 1 . 2 . . . . . . . . . Processor 4 | . 1 . . . . 1 . 2 . . . . Hackware . | . . . . . . . . . . . . . Protection 36 | . 1 1 2 2 2 4 7 1 6 3 2 5 Artifact . | . . . . . . . . . . . . . Weapon 77 | 3 4 3 3 3 5 4 9 6 16 6 4 11 Energy Gun 30 | 3 2 1 1 . 4 1 3 4 3 3 1 4 Energy Cannon 5 | . . . . . . . . . 3 . 1 1 Ballistic Gun 22 | . 2 2 1 2 . 1 3 1 4 1 2 3 Ballistic Cannon 5 | . . . 1 . . 1 1 . 1 1 . . Launcher 13 | . . . . 1 1 1 2 . 4 1 . 3 Special Weapon . | . . . . . . . . . . . . . Impact Weapon . | . . . . . . . . . . . . . Slashing Weapon 2 | . . . . . . . . 1 1 . . . Piercing Weapon . | . . . . . . . . . . . . . Special Melee Weapon . | . . . . . . . . . . . . . Unidentified Prototypes 10 | . . . . . 1 . 3 1 . 4 . 1 Corrupted Parts 4 | . . . . . . . . . . 2 2 . System Corruption 8 | . . . . . . . . . . 4 4 . Parts Lost 73 | . 2 3 1 3 1 6 14 2 14 4 . 23 Power 9 | . . . . 1 . . 2 1 2 . . 3 Propulsion 22 | . . 1 . . . 3 6 . 6 2 . 4 Utility 24 | . . 1 . 2 . 3 4 1 4 1 . 8 Weapon 18 | . 2 1 1 . 1 . 2 . 2 1 . 8 Highest Loss Streak 21 | . 1 1 1 2 1 5 5 2 3 4 . 21 To Critical Strikes 3 | . . 1 . . . . . . . 2 . . Average Slot Usage (%) 95 | . 99 99 98 99 99 96 95 83 93 89 93 85 Engine 4 | . 14 . . 8 9 7 2 3 4 . . . Core 3 | . . 13 11 2 . . 4 1 1 6 6 5 Treads 19 | . 13 13 20 22 26 21 26 2 22 15 20 13 Wheel 6 | . 14 14 11 11 9 5 . 14 1 . . . Device 7 | . 8 . 4 . 7 5 4 8 12 13 13 12 Storage 8 | . 14 14 10 11 9 7 7 6 6 6 6 6 Processor 5 | . 2 . . . . 7 7 6 13 13 13 12 Protection 17 | . 2 13 16 21 18 23 24 20 15 19 20 19 Energy Gun 8 | . 14 14 10 11 15 12 6 5 3 5 . 4 Energy Cannon 1 | . . . . . . . . . 4 . 5 4 Ballistic Gun 4 | . 13 14 2 10 2 . 2 6 3 . 6 2 Ballistic Cannon 1 | . . . 9 . . 1 4 . 1 5 . . Peak Build Rating 86 | 7 11 12 22 23 28 37 42 57 64 86 86 85 Average Rating 38 | 5 9 11 19 21 26 32 38 51 57 56 80 77 On Entrance 34 | . 7 10 12 21 21 28 37 33 56 59 86 82 Naked Turns . | . . . . . . . . . . . . . Heaviest Build 129 | 15 53 52 107 106 113 117 117 126 129 118 127 128 Greatest Support 133 | 16 20 16 23 12 12 85 85 36 110 130 133 133 Greatest Overweight (x) 12 | . 3 3 8 8 9 9 10 12 12 2 . 1 Average Overweight (x) 4 | . 2 3 5 7 8 7 2 7 1 1 . . Largest Inventory Capacity 25 | 8 20 20 25 25 25 25 25 25 25 25 25 25 Average Capacity 24 | 7 19 20 23 25 25 25 25 25 25 25 25 24 Most Carried 25 | 4 20 20 25 25 25 25 25 25 25 25 25 25 Average Carried 23 | 3 14 19 23 24 24 24 24 23 24 23 24 24 Final Capacity 25 | 8 20 20 25 25 25 25 25 25 25 25 25 5 Final Carried 25 | 4 20 20 25 25 25 25 24 25 25 25 25 5 Class Distribution -------------------- 51% | Scavenger-Mutant 45% | Mutant 3% | Commander-Mutant Dominant Class ---------------- Mutant | -10/Materials Scavenger-Mutant | -10/Mines Mutant | -9/Materials Mutant | -9/Mines Mutant | -8/Materials Mutant | -7/Factory Scavenger-Mutant | -7/Storage Scavenger-Mutant | -6/Factory Scavenger-Mutant | -6/Extension Scavenger-Mutant | -6/Cetus Scavenger-Mutant | -6/Archives Scavenger-Mutant | -6/Hub_04(d) Resources | -11 -10 -10 -9 -9 -8 -7 -7 -6 -6 -6 -6 -6 ----------- Run | Yrd Mat Min Mat Min Mat Fac Sto Fac Ext Cet Arc Hub Matter Collected 4583 | 280 328 145 300 165 225 231 620 505 904 121 216 543 Remotely . | . . . . . . . . . . . . . Salvage Created 6943 | 155 434 154 487 253 486 429 1047 406 1562 22 . 1508 Parts 377 | 8 43 12 26 19 31 21 43 18 66 2 . 88 Haulers Intercepted 14 | . 2 . 2 . 5 1 3 . . . . 1 Recyclers Shooed 2 | . . . . 1 . . . 1 . . . . Parts Field Recycled . | . . . . . . . . . . . . . Retrieved Matter . | . . . . . . . . . . . . . Parts Self-Destructed . | . . . . . . . . . . . . . Prevented . | . . . . . . . . . . . . . Kills | -11 -10 -10 -9 -9 -8 -7 -7 -6 -6 -6 -6 -6 ------- Run | Yrd Mat Min Mat Min Mat Fac Sto Fac Ext Cet Arc Hub Combat Hostiles Destroyed 139 | . 13 7 7 9 13 11 27 3 28 . . 21 Guns 80 | . 12 7 2 7 9 6 9 3 8 . . 17 Cannons 26 | . . . 5 . . 3 10 . 7 . . 1 AOE 30 | . 1 . . 2 4 2 8 . 10 . . 3 Classes Destroyed 17 | 2 6 . 1 1 1 3 1 . 1 . . 1 Worker 9 | . 2 . 1 . . . . 2 2 . . 2 Builder 6 | . . . . . 2 . . . 1 . . 3 Tunneler 5 | 2 . . . . . . . . . . . 3 Hauler 14 | . 2 . 2 . 5 1 3 . . . . 1 Recycler 9 | 1 . . 2 . . 1 1 1 2 . . 1 Mechanic 1 | . . . . . . . 1 . . . . . Operator 6 | . 1 . 1 . 1 . . . 1 . . 2 Watcher 10 | . 2 . . . 1 1 1 1 2 1 . 1 Swarmer 31 | . 9 5 2 3 7 . 1 . 4 . . . Grunt 64 | . 4 2 3 4 4 5 18 3 11 . . 10 Brawler 4 | . . . . . . 1 1 . 1 . . 1 Duelist 3 | . . . . 2 . 1 . . . . . . Sentry 22 | . . . 2 . 2 2 4 . 9 . . 3 Hunter 6 | . . . . . . 1 1 . 1 . . 3 Programmer 6 | . . . . . . 1 2 . . . . 3 Heavy 1 | . . . . . . . . . . . . 1 Behemoth 2 | . . . . . . . . . 2 . . . Enhanced Grunt 1 | . . . . . . . . . . . . 1 Best Kill Streak 10 | 3 5 3 7 3 6 4 10 2 8 1 . 9 Combat Bots Only 9 | . 3 3 4 3 5 4 9 2 5 . . 4 Max Kills in Single Turn 4 | 1 2 1 2 2 4 3 3 1 3 1 . 3 Gunslinging 1 | . . . . . 1 . . . . . . . Exploded 3 | . 1 . . 2 2 2 3 . 2 . . 1 Melee . | . . . . . . . . . . . . . Uniques/NPCs Destroyed . | . . . . . . . . . . . . . Combat | -11 -10 -10 -9 -9 -8 -7 -7 -6 -6 -6 -6 -6 -------- Run | Yrd Mat Min Mat Min Mat Fac Sto Fac Ext Cet Arc Hub Hostile Shots Fired 1623 | . 50 36 45 24 61 132 310 51 486 38 . 390 Missed 506 | . 9 13 16 4 18 34 102 21 174 9 . 106 Damage Taken 15646 | . 452 212 328 421 503 1172 2835 574 3483 689 48 4929 Core 1346 | . 56 15 24 . . 108 275 57 193 . . 618 Absorbed by Shields 104 | . . . . . . . . . . 104 . . Regen/Repaired (Parts) 1266 | . . . 204 . 105 . 270 102 295 84 21 185 Core Remaining (%) 82 | 100 . 71 . 94 100 . 45 . . . . . Volleys Fired 524 | 6 47 16 26 20 51 40 82 23 93 13 4 103 Largest 2 | 2 2 2 2 2 2 2 2 2 2 1 2 2 Hottest 170 | 80 88 85 100 88 130 130 124 113 160 44 118 170 Shots Fired 934 | 12 95 32 51 37 90 71 147 46 173 13 6 161 Gun 685 | 12 95 32 25 36 88 56 90 46 87 . 4 114 Cannon 204 | . . . 26 . . 11 48 . 78 3 2 36 Launcher 45 | . . . . 1 2 4 9 . 8 10 . 11 Special . | . . . . . . . . . . . . . Kinetic 393 | . 48 16 35 17 27 14 81 23 67 3 3 59 Thermal 471 | . 34 16 16 19 61 53 57 23 98 . 3 91 Explosive 45 | . . . . 1 2 4 9 . 8 10 . 11 Electromagnetic 25 | 12 13 . . . . . . . . . . . Robot Hit Streak 48 | 6 9 7 8 7 15 11 48 10 30 7 3 8 Robot Miss Streak 17 | 1 6 5 3 3 8 17 8 6 4 . 1 4 Penetration Max 1 | . . . . . . . . 1 1 . . 1 Secondary Targets 10 | . 1 3 . 1 2 1 . 2 . . . . Max Gunslinging Chain 1 | . 1 1 . 1 1 1 . 1 . . . . Shots Hit Robots 678 | 8 60 16 34 29 74 66 126 33 125 6 3 98 Core Hits 599 | 3 30 9 19 32 89 89 123 19 85 25 . 76 Critical Kills 4 | . . . . . . . . . 1 . . 3 Critical Parts Destroyed 7 | . . . . . . . . . 1 . . 6 Critical Strikes 18 | . . . 4 . . . . 2 2 1 . 9 Burn 4 | . . . 2 . . . . 2 . . . . Meltdown 1 | . . . . . . . . . 1 . . . Destroy 10 | . . . . . . . . . 1 . . 9 Blast 3 | . . . 2 . . . . . . 1 . . Melee Attacks 23 | . . . . . . . . 7 16 . . . Impact . | . . . . . . . . . . . . . Slashing 23 | . . . . . . . . 7 16 . . . Piercing . | . . . . . . . . . . . . . Sneak Attacks . | . . . . . . . . . . . . . Combat Hostiles . | . . . . . . . . . . . . . Follow-up Attacks . | . . . . . . . . . . . . . Damage Inflicted 20227 | 110 913 210 655 565 1435 1311 4041 642 4527 1039 96 4683 Guns 9728 | 110 874 210 306 420 1083 684 1647 642 1360 . 32 2360 Cannons 4026 | . . . 349 . . 186 885 . 1607 76 64 859 Explosions 6473 | . 39 . . 145 352 441 1509 . 1560 963 . 1464 Melee . | . . . . . . . . . . . . . Ramming . | . . . . . . . . . . . . . Kinetic 5588 | . 452 80 477 143 233 235 1335 386 858 76 16 1297 Thermal 8155 | . 342 130 178 277 850 635 1197 256 2109 . 80 2101 Explosive 6255 | . . . . 145 352 441 1509 . 1560 963 . 1285 Electromagnetic 229 | 110 119 . . . . . . . . . . . Impact . | . . . . . . . . . . . . . Slashing . | . . . . . . . . . . . . . Piercing . | . . . . . . . . . . . . . Highest Corruption 16 | . 2 2 4 4 . 1 11 4 4 8 12 16 Average Corruption 4 | . 2 2 3 4 . 1 3 4 4 4 8 12 Corruption Purged . | . . . . . . . . . . . . . Corruption Blocked . | . . . . . . . . . . . . . Effects 220 | . 4 8 17 23 . 1 30 4 56 13 5 59 Message Errors 56 | . 1 2 5 6 . . 3 3 14 6 . 16 Matter Fused 50 | . . 3 4 6 . . 5 1 12 2 2 15 Heat Flow Errors 22 | . 1 1 2 3 . . 7 . 4 . 1 3 Energy Discharges 24 | . . 1 3 3 . . 7 . 4 1 . 5 Parts Rejected 1 | . . . . . . . 1 . . . . . Parts Fused 1 | . . . . . . . 1 . . . . . Data Loss (minor) 27 | . . . . 3 . . 2 . 14 1 1 6 Data Loss (major) 20 | . 1 1 3 1 . 1 1 . 4 3 . 5 Misfires 9 | . 1 . . . . . 2 . 3 . . 3 Alerts 3 | . . . . 1 . . . . 1 . . 1 Weapon Failures 7 | . . . . . . . 1 . . . 1 5 Overload Shots . | . . . . . . . . . . . . . Overflow Damage 238 | . 7 . 1 . 48 . 39 . 79 . . 64 Projectiles 70 | . . . 1 . . . . . 14 . . 55 Explosions 168 | . 7 . . . 48 . 39 . 65 . . 9 Melee . | . . . . . . . . . . . . . Knockbacks 17 | . . . 1 . . 2 13 . 1 . . . Impact . | . . . . . . . . . . . . . Kinetic 17 | . . . 1 . . 2 13 . 1 . . . Secondary . | . . . . . . . . . . . . . Self-Inflicted Damage 639 | . 38 . . 28 . . 232 . 100 . . 241 Shots 17 | . 1 . . 1 . . 5 . 2 . . 8 Rammed . | . . . . . . . . . . . . . Targets Rammed . | . . . . . . . . . . . . . Kicked . | . . . . . . . . . . . . . Crushed . | . . . . . . . . . . . . . Highest Temperature 443 | 72 297 234 443 270 348 303 321 143 408 . 120 249 Average Temperature 82 | 34 55 101 118 93 97 93 84 48 73 . 77 59 Received Heat Transfer 3653 | . 126 36 144 30 189 309 867 270 1067 . . 615 Effects 9 | . . . 5 1 1 . 2 . . . . . Shutdowns 1 | . . . 1 . . . . . . . . . Energy Bleed 1 | . . . . . . . 1 . . . . . Interference 3 | . . . . 1 1 . 1 . . . . . Matter Decay 1 | . . . 1 . . . . . . . . . Damage (minor) 1 | . . . 1 . . . . . . . . . Damage (major) 2 | . . . 2 . . . . . . . . . Siege Activations . | . . . . . . . . . . . . . Robots Corrupted . | . . . . . . . . . . . . . Combat Hostiles . | . . . . . . . . . . . . . Parts Fried . | . . . . . . . . . . . . . Impact Corruptions . | . . . . . . . . . . . . . Robots Melted 3 | . . . . . . . . . 3 . . . Combat Hostiles 3 | . . . . . . . . . 3 . . . Parts Melted 14 | . . 1 . . . . 3 3 7 . . . Heat Transferred 13231 | . 693 296 570 345 1055 770 2570 905 4284 . 137 1606 Parts Sabotaged . | . . . . . . . . . . . . . Parts Stolen . | . . . . . . . . . . . . . Parts Stripped . | . . . . . . . . . . . . . Power Chain Reactions 2 | . 1 . . . . . . . . . . 1 Alert | -11 -10 -10 -9 -9 -8 -7 -7 -6 -6 -6 -6 -6 ------- Run | Yrd Mat Min Mat Min Mat Fac Sto Fac Ext Cet Arc Hub Peak Influence 1188 | 15 209 192 302 215 233 165 795 448 197 208 271 1188 Initial 361 | . 9 37 . 82 . 25 24 361 60 56 65 94 Average 200 | 3 95 57 141 86 75 53 456 300 85 131 243 750 Maximum Alert Level 4 | . 1 . 1 1 1 . 3 2 . 1 1 4 Low Security (%) 70 | 100 86 100 74 85 96 100 8 10 100 88 17 6 Level 1 15 | . 13 . 25 14 3 . 38 72 . 11 82 1 Level 2 7 | . . . . . . . 35 17 . . . 28 Level 3 7 | . . . . . . . 17 . . . . 60 Level 4 . | . . . . . . . . . . . . 2 Level 5 . | . . . . . . . . . . . . . High Security . | . . . . . . . . . . . . . Max Security . | . . . . . . . . . . . . . Squads Dispatched 42 | . 2 . 2 . 2 4 13 1 2 1 . 15 Investigation 5 | . . . . . 1 . 2 . 1 1 . . Extermination 9 | . . . . . . 1 2 1 . . . 5 Reinforcement 22 | . 2 . 2 . 1 3 4 . 1 . . 9 Assault 3 | . . . . . . . 2 . . . . 1 Garrison 3 | . . . . . . . 3 . . . . . Intercept . | . . . . . . . . . . . . . Searches Triggered . | . . . . . . . . . . . . . Construction Impeded 6 | . . . . . . 1 1 . 1 . . 3 Haulers Reinforced 6 | . . . . . . 1 3 . . . . 2 Active Scanning Responses . | . . . . . . . . . . . . . Cargo Convoy Interrupts . | . . . . . . . . . . . . . Stealth | -11 -10 -10 -9 -9 -8 -7 -7 -6 -6 -6 -6 -6 --------- Run | Yrd Mat Min Mat Min Mat Fac Sto Fac Ext Cet Arc Hub Distress Signals 14 | . 2 . 3 . . 1 3 . 2 2 . 1 Communications Jammed . | . . . . . . . . . . . . . Distress Signals . | . . . . . . . . . . . . . Times Spotted 255 | . 25 9 21 9 24 17 43 9 42 10 3 43 Peak Tracking Total 9 | . 4 3 4 3 5 4 9 3 8 5 1 6 Tactical Retreats 8 | . 1 . . . . . 3 . 2 . . 2 Traps | -11 -10 -10 -9 -9 -8 -7 -7 -6 -6 -6 -6 -6 ------- Run | Yrd Mat Min Mat Min Mat Fac Sto Fac Ext Cet Arc Hub Traps Triggered 14 | . 3 . 3 . 1 . 2 . 5 . . . Indirectly . | . . . . . . . . . . . . . Trap Hack Attempts . | . . . . . . . . . . . . . Triggered . | . . . . . . . . . . . . . Disarmed . | . . . . . . . . . . . . . Reprogrammed . | . . . . . . . . . . . . . Reused . | . . . . . . . . . . . . . Traps Extracted . | . . . . . . . . . . . . . Installed . | . . . . . . . . . . . . . Triggered . | . . . . . . . . . . . . . Machines | -11 -10 -10 -9 -9 -8 -7 -7 -6 -6 -6 -6 -6 ---------- Run | Yrd Mat Min Mat Min Mat Fac Sto Fac Ext Cet Arc Hub Machines Disabled 30 | . 1 . 1 . . . 4 . 3 . 3 18 Max in Single Turn 2 | . 1 . . . . . 2 . 1 . 1 2 Machines Repaired . | . . . . . . . . . . . . . Machines Dismantled . | . . . . . . . . . . . . . Machines Sabotaged . | . . . . . . . . . . . . . Overloaded Fab Kills . | . . . . . . . . . . . . . Hacking | -11 -10 -10 -9 -9 -8 -7 -7 -6 -6 -6 -6 -6 --------- Run | Yrd Mat Min Mat Min Mat Fac Sto Fac Ext Cet Arc Hub Machines Accessed 53 | . 8 . 8 1 8 1 9 2 10 3 . 3 Terminals 41 | . 6 . 4 1 4 1 8 2 9 3 . 3 Fabricators . | . . . . . . . . . . . . . Repair Stations 4 | . . . 2 . 2 . . . . . . . Recycling Units 6 | . 2 . 1 . 1 . 1 . 1 . . . Scanalyzers 2 | . . . 1 . 1 . . . . . . . Garrison Access . | . . . . . . . . . . . . . Total Hacks 132 | . 27 . 19 2 23 2 21 3 24 7 . 4 Successful 60 | . 11 . 11 2 12 1 11 2 10 . . . Failed 70 | . 16 . 7 . 10 1 10 1 14 7 . 4 Catastrophic 18 | . 4 . 3 . . 1 . 1 5 3 . 1 Database Lockouts 2 | . . . 1 . 1 . . . . . . . Manual 64 | . 21 . 8 1 9 2 10 3 6 1 1 2 Terminals 105 | . 24 . 8 2 13 2 20 3 22 7 . 4 Fabricators . | . . . . . . . . . . . . . Repair Stations 8 | . . . 5 . 3 . . . . . . . Recycling Units 10 | . 3 . 2 . 2 . 1 . 2 . . . Scanalyzers 9 | . . . 4 . 5 . . . . . . . Garrison Access . | . . . . . . . . . . . . . Terminal Hacks 28 | . 8 . 2 2 1 . 6 1 8 . . . Record 2 | . . . . . . . 1 . 1 . . . Part Schematic 2 | . 1 . 1 . . . . . . . . . Robot Analysis 5 | . 2 . . 1 1 . . . 1 . . . Open Door 7 | . . . . . . . 3 . 4 . . . Branch Access Points 2 | . . . . . . . 1 1 . . . . Unreport Threat 3 | . 2 . . . . . . . 1 . . . Registered Components 3 | . 1 . 1 . . . 1 . . . . . Zone Layout 4 | . 2 . . 1 . . . . 1 . . . Fabricator Hacks . | . . . . . . . . . . . . . Repair Station Hacks 5 | . . . 3 . 2 . . . . . . . Scan Component 3 | . . . 2 . 1 . . . . . . . Repair 2 | . . . 1 . 1 . . . . . . . Recycling Unit Hacks 7 | . 2 . 1 . 2 . 1 . 1 . . . Retrieve Components 7 | . 2 . 1 . 2 . 1 . 1 . . . Scanalyzer 9 | . . . 4 . 5 . . . . . . . Insert Component 4 | . . . 2 . 2 . . . . . . . Analyze 5 | . . . 2 . 3 . . . . . . . Garrison Access Hacks . | . . . . . . . . . . . . . Unauthorized Hacks 11 | . 1 . 1 . 2 1 4 1 1 . . . Terminals 11 | . 1 . 1 . 2 1 4 1 1 . . . Botnet 11 | . 1 . 1 . 2 1 4 1 1 . . . Fabricators . | . . . . . . . . . . . . . Repair Stations . | . . . . . . . . . . . . . Recycling Units . | . . . . . . . . . . . . . Scanalyzers . | . . . . . . . . . . . . . Garrison Access . | . . . . . . . . . . . . . Data Cores Recovered 1 | . 1 . . . . . . . . . . . Used . | . . . . . . . . . . . . . Hacking Detections 41 | . 6 . 7 1 8 1 4 1 7 3 . 3 Full Trace Events 4 | . 1 . . . . . 1 . 1 1 . . Feedback Events . | . . . . . . . . . . . . . Feedback Blocked . | . . . . . . . . . . . . . Robot Schematics Acquired . | . . . . . . . . . . . . . Robots Built . | . . . . . . . . . . . . . Authchips . | . . . . . . . . . . . . . Time . | . . . . . . . . . . . . . Total Robot Build Rating . | . . . . . . . . . . . . . Part Schematics Acquired 6 | . 1 . 3 . 2 . . . . . . . Parts Built . | . . . . . . . . . . . . . Authchips . | . . . . . . . . . . . . . Time . | . . . . . . . . . . . . . Total Part Build Rating . | . . . . . . . . . . . . . Parts Repaired 2 | . . . 1 . 1 . . . . . . . Time 58 | . . . 26 . 32 . . . . . . . Parts Recycled . | . . . . . . . . . . . . . Recycled Matter . | . . . . . . . . . . . . . Retrieved Matter . | . . . . . . . . . . . . . Retrieved Components 28 | . 3 . 3 . 10 . 2 . 10 . . . Parts Scanalyzed 4 | . . . 2 . 2 . . . . . . . Part Schematics Acquired 4 | . . . 2 . 2 . . . . . . . Parts Damaged . | . . . . . . . . . . . . . Bothacking | -11 -10 -10 -9 -9 -8 -7 -7 -6 -6 -6 -6 -6 ------------ Run | Yrd Mat Min Mat Min Mat Fac Sto Fac Ext Cet Arc Hub Used RIF Installer . | . . . . . . . . . . . . . Robots Hacked . | . . . . . . . . . . . . . Non-combat . | . . . . . . . . . . . . . Combat . | . . . . . . . . . . . . . Robot Hacks Applied . | . . . . . . . . . . . . . Relay Couplers Released . | . . . . . . . . . . . . . Fabnet Peak Effective % . | . . . . . . . . . . . . . Robots Rewired . | . . . . . . . . . . . . . Allies Hacked . | . . . . . . . . . . . . . Hacks Repelled . | . . . . . . . . . . . . . Allies | -11 -10 -10 -9 -9 -8 -7 -7 -6 -6 -6 -6 -6 -------- Run | Yrd Mat Min Mat Min Mat Fac Sto Fac Ext Cet Arc Hub Total Allies 23 | . . 3 . . . . 10 . 5 5 . . Largest Group 10 | . . 3 3 1 1 . 10 . 2 6 5 5 Highest-Rated Group 639 | . . 40 40 7 7 . 173 . 159 639 473 473 Highest-Rated Ally 159 | . . 16 16 7 7 . 29 . 159 159 96 96 Total Orders 1 | . . . . . 1 . . . . . . . STAY 1 | . . . . . 1 . . . . . . . Ally Attacks 314 | . . 3 61 . . . 83 . 25 38 28 76 Total Damage 6972 | . . 30 689 . . . 1063 . 447 1468 910 2365 Kills 60 | . . 1 16 . . . 13 . 2 9 4 15 Allies Corrupted 1 | . . . . . . . . . . . . 1 Allies Melted 1 | . . . . . . . . . 1 . . . Intel | -11 -10 -10 -9 -9 -8 -7 -7 -6 -6 -6 -6 -6 ------- Run | Yrd Mat Min Mat Min Mat Fac Sto Fac Ext Cet Arc Hub Robot Analysis Total 5 | . 2 . . 1 1 . . . 1 . . . Derelict Logs Recovered 2 | . . 1 . 1 . . . . . . . . Drone Launches . | . . . . . . . . . . . . . Drone Recoveries . | . . . . . . . . . . . . . Exploration | -11 -10 -10 -9 -9 -8 -7 -7 -6 -6 -6 -6 -6 ------------- Run | Yrd Mat Min Mat Min Mat Fac Sto Fac Ext Cet Arc Hub Turns Passed 15296 | 82 1184 905 1593 1208 1839 1220 1538 892 2617 626 209 1383 Spaces Moved 5975 | 48 607 562 604 539 660 460 497 373 873 199 114 439 Core 6 | 1 . . . . . . . . . . . 5 Treads 2170 | . 24 . 97 . . 67 440 . 795 199 114 434 Legs 14 | . . . . . . . . 14 . . . . Wheels 3785 | 47 583 562 507 539 660 393 57 359 78 . . . Hover . | . . . . . . . . . . . . . Flight . | . . . . . . . . . . . . . Fastest Speed 50 | 50 100 145 145 195 210 225 230 131 155 160 160 50 Average Speed 207 | 98 145 145 229 209 219 226 239 201 235 274 160 213 Slowest Speed 540 | 100 320 145 480 210 225 236 320 540 320 320 160 240 Overloaded Moves . | . . . . . . . . . . . . . Propulsion Burnouts . | . . . . . . . . . . . . . Robots Hopped . | . . . . . . . . . . . . . Cave-ins Triggered . | . . . . . . . . . . . . . Exploration Rate (%) 60 | 4 93 97 59 99 51 15 79 9 84 70 85 43 Regions Visited 12 Branch Regions 7 Pre-discovered Areas 1 | . . 1 . . . . . . . . . . Known Exits Taken 2 | . 1 . . . . . . 1 . . . . Unknown Exits Taken 10 | 1 . 1 1 1 1 1 1 . 1 1 1 . Scrap Searched 2 | . . 1 . 1 . . . . . . . . Spaces Dug 5 | . . . . . . . . 5 . . . . Terrain Destroyed 337 | . 4 . . 11 17 12 50 5 64 72 . 102 Melee 5 | . . . . . . . . 5 . . . . Projectile 34 | . . . . . . . 3 . 4 . . 27 AOE 298 | . 4 . . 11 17 12 47 . 60 72 . 75 Terrain Rammed . | . . . . . . . . . . . . . Walls Destroyed . | . . . . . . . . . . . . . Machines Disabled . | . . . . . . . . . . . . . Actions | -11 -10 -10 -9 -9 -8 -7 -7 -6 -6 -6 -6 -6 --------- Run | Yrd Mat Min Mat Min Mat Fac Sto Fac Ext Cet Arc Hub Total 7910 | 66 810 623 778 578 967 572 694 454 1248 265 137 718 Wait 912 | . 126 34 67 9 225 42 59 23 154 24 3 146 Move 5963 | 47 606 561 603 538 659 459 496 372 872 198 113 439 Hop . | . . . . . . . . . . . . . Pick Up 139 | 5 16 2 44 3 8 11 14 6 18 8 3 1 Fast Attach 55 | 6 7 . 4 1 3 1 5 9 13 4 . 2 Attach 56 | 1 1 3 1 3 3 7 8 2 10 4 1 12 Detach 1 | . . . . . . . . . 1 . . . Swap 87 | 1 3 4 8 3 6 6 14 5 19 3 7 8 Drop 121 | . 4 3 25 1 12 6 16 7 23 11 6 7 Fire 524 | 6 47 16 26 20 51 40 82 23 93 13 4 103 Melee 23 | . . . . . . . . 7 16 . . . Ram . | . . . . . . . . . . . . . Kick . | . . . . . . . . . . . . . Crush . | . . . . . . . . . . . . . Escape Stasis 28 | . . . . . . . . . 28 . . . Rewire 1 | . . . . . . . . . 1 . . . Trap . | . . . . . . . . . . . . . Miscellaneous . | . . . . . . . . . . . . . Route ------- -11/Scrapyard -10/Materials (discovered 5 exits: *Mat x3 / *Min x2) -10/Mines (discovered 2 exits: *Mat x2) -9/Materials (discovered 2 exits: *Mat / *Min) -9/Mines (discovered 3 exits: *Mat x2 / [*Exi]) -8/Materials -7/Factory -7/Storage (discovered 2 exits: *Fac / Rec) -6/Factory (discovered 4 exits: Low x2 / *Ext x2) -6/Extension (discovered 2 exits: [*Fac] / *Cet) -6/Cetus (discovered 2 exits: [*Fac] / *Arc) -6/Archives (discovered 3 exits: [*Fac] / *Hub x2) -6/Hub_04(d) History --------- Turn | Location | Event 30 | -11/Scrapyard | Discovered new exit (range 15) 83 | -11/Scrapyard | Entered Materials 306 | -10/Materials | Build established: Mutant 328 | -10/Materials | Discovered new exit (range 16) 613 | -10/Materials | Discovered new exit (range 16) 714 | -10/Materials | Discovered new exit (range 12) 821 | -10/Materials | Identified exit to Mines 997 | -10/Materials | Discovered new exit (range 14) 1141 | -10/Materials | Discovered new exit (range 16) 1267 | -10/Materials | Entered Mines 1313 | -10/Mines | Assembled infested the area 1597 | -10/Mines | Learned Materials emergency access door positions 1661 | -10/Mines | Assisted by bots powering up and referring to "LRC-V3" 1784 | -10/Mines | Build established: Scavenger-Mutant 2063 | -10/Mines | Discovered new exit (range 16) 2071 | -10/Mines | Received a Rocket Launcher from a helpful Derelict 2158 | -10/Mines | Learned location of Storage (-7) 2163 | -10/Mines | Discovered new exit (range 5) 2172 | -10/Mines | Entered Materials 2172 | -9/Materials | Accompanied by 3 allies 2172 | -9/Materials | Evolved 2 slots: Propulsion x1, Utility x1 3006 | -9/Materials | Build established: Mutant 3186 | -9/Materials | Central database locked down 3358 | -9/Materials | Repaired Huge Storage Unit 3508 | -9/Materials | Discovered new exit (range 12) 3631 | -9/Materials | Discovered new exit (range 8) 3765 | -9/Materials | Entered Mines 3765 | -9/Mines | Accompanied by 1 ally 3847 | -9/Mines | Discovered new exit (range 6) 3918 | -9/Mines | Found a hidden stash of uninstalled traps 4227 | -9/Mines | Discovered new exit (range 13) 4286 | -9/Mines | Learned Materials security intel 4326 | -9/Mines | Found a damaged Exp. Sensor Array with a note attached 4692 | -9/Mines | Deemed a non-threat by the Exiles lab entrance 4692 | -9/Mines | Discovered new exit (range 5) 4973 | -9/Mines | Entered Materials 4973 | -8/Materials | Accompanied by 1 ally 4973 | -8/Materials | Evolved 2 slots: Propulsion x1, Utility x1 5582 | -8/Materials | Repaired Med. Armor Plating 5651 | -8/Materials | Discovered new exit (range 15) 5976 | -8/Materials | Central database locked down 6812 | -8/Materials | Entered Factory 6812 | -7/Factory | Evolved 2 slots: Utility x2 7781 | -7/Factory | Lost 5 parts (2n3u) 7972 | -7/Factory | Discovered new exit (range 15) 8032 | -7/Factory | Entered Storage 8052 | -7/Storage | Assisted by bots powering up and referring to "LRC-V3" 8207 | -7/Storage | Identified exit to Recycling 8233 | -7/Storage | Lost 3 allies 8368 | -7/Storage | Build established: Commander-Mutant 8606 | -7/Storage | Found Prototype Protection 8606 | -7/Storage | Identified Lgt. Regenerative Plating 8874 | -7/Storage | Build established: Scavenger-Mutant 8978 | -7/Storage | Garrison activated, responded to threat 9232 | -7/Storage | First assault squad dispatched 9334 | -7/Storage | System corruption reached 10% 9337 | -7/Storage | Core integrity fell below 50% 9361 | -7/Storage | Destroyed 9 combat bots 9364 | -7/Storage | Lost 5 parts (1p2n2w) 9555 | -7/Storage | Lost 3 parts (2n1u) 9559 | -7/Storage | Discovered new exit (range 6) 9570 | -7/Storage | Entered Factory 9570 | -6/Factory | Evolved 2 slots: Utility x2 9962 | -6/Factory | Identified exit to Lower Caves 9962 | -6/Factory | Identified exit to Extension 10462 | -6/Factory | Entered Extension 10788 | -6/Extension | Rescued a captive Derelict 10798 | -6/Extension | Rescued a captive Derelict 11131 | -6/Extension | Spotted B-75 Beast 11414 | -6/Extension | Destroyed B-75 Beast 11442 | -6/Extension | Spotted B-75 Beast 11546 | -6/Extension | Destroyed B-75 Beast 11575 | -6/Extension | Lost 3 parts (1p1n1u) 11871 | -6/Extension | Discovered new exit (range 18) 11873 | -6/Extension | Discovered new exit (range 17) 11937 | -6/Extension | Disrupted transfer network 12200 | -6/Extension | Rescued a captive Derelict 12384 | -6/Extension | Rescued a captive Derelict 12385 | -6/Extension | Rescued a captive Derelict 12762 | -6/Extension | Rescued A7 13079 | -6/Extension | Entered Cetus 13079 | -6/Cetus | Accompanied by 1 ally (A7) 13084 | -6/Cetus | Acquired a Cetus Manufacturing Module code from A7 13114 | -6/Cetus | Spotted Cetus Guard 13114 | -6/Cetus | Spotted Cetus Guard 13115 | -6/Cetus | Spotted Cetus Guard 13115 | -6/Cetus | Spotted Cetus Guard 13128 | -6/Cetus | Allies destroyed Cetus Guard 13133 | -6/Cetus | Allies destroyed Cetus Guard 13136 | -6/Cetus | Allies destroyed Cetus Guard 13146 | -6/Cetus | Allies destroyed Cetus Guard 13163 | -6/Cetus | Lost 4 parts (2n1u1w) 13278 | -6/Cetus | Started Cetus Manufacturing Module 13303 | -6/Cetus | Manufactured an Enhanced Grunt 13328 | -6/Cetus | Manufactured an Enhanced Grunt 13353 | -6/Cetus | Manufactured an Enhanced Grunt 13378 | -6/Cetus | Manufactured an Enhanced Grunt 13403 | -6/Cetus | Manufactured an Enhanced Grunt 13486 | -6/Cetus | Discovered new exit (range 18) 13551 | -6/Cetus | Spotted Cetus Guard 13552 | -6/Cetus | Spotted Cetus Guard 13555 | -6/Cetus | Spotted Cetus Guard 13560 | -6/Cetus | Spotted Cetus Guard 13566 | -6/Cetus | Allies destroyed Cetus Guard 13568 | -6/Cetus | Allies destroyed Cetus Guard 13571 | -6/Cetus | Allies destroyed Cetus Guard 13588 | -6/Cetus | Discovered new exit (range 18) 13612 | -6/Cetus | Met Revision 17 13705 | -6/Cetus | Entered Archives 13705 | -6/Archives | Accompanied by 6 allies (A7) 13755 | -6/Archives | Discovered new exit (range 18) 13776 | -6/Archives | Discovered new exit (range 18) 13803 | -6/Archives | Discovered new exit (range 18) 13817 | -6/Archives | Unable to access archive contents 13841 | -6/Archives | Unable to access archive contents 13863 | -6/Archives | Unable to access archive contents 13913 | -6/Archives | System corruption reached 10% 13914 | -6/Archives | Entered Hub_04(d) 13914 | -6/Hub_04(d) | Accompanied by 5 allies 14109 | -6/Hub_04(d) | Spotted B-75 Beast 14125 | -6/Hub_04(d) | Allies destroyed B-75 Beast 14964 | -6/Hub_04(d) | First assault squad dispatched 15259 | -6/Hub_04(d) | Core integrity fell below 50% 15288 | -6/Hub_04(d) | Core integrity fell below 20% 15297 | -6/Hub_04(d) | Destroyed by H-66 Slayer with Gauss Rifle Last Messages --------------- Penetrated by Slug. Rnf. Deuterium Engine destroyed. Penetrated by Slug. Slug penetrates Backup Mainframe. H-66 Slayer destroyed. K-01 Serf collects debris. U-05 Engineer lays Concrete. Penetrated by Slug. System corrupted: Adv. Variable Charge Gun failed to cycle. U-05 Engineer builds a Wall. Penetrated by Slug. Slug penetrates Wall. Slug penetrates H-66 Slayer. Penetrated by Slug. K-01 Serf collects debris. Adv. Variable Charge Gun destroyed. Dropped Huge Storage Unit. Critical hit (Burn: +37). U-05 Engineer builds a Wall. Penetrated by Slug. Map ----- +----------------------------------------------------+ | # [=*!= ## #########?# #???? | | # """ ! / ## + * # #???? | | # # #### # ???? | | # """ "" # #?????????+ ???? | | # ## #?????????# ##+#### ???? | | # # #?????????# ??????? ???? | | ######+# # #?????????#????????##???? | | ?????# """" ## #???+##?????????????????? | | ?????# """" ##*##?? ??????????????????? | | ?????# """" ##%%#?? #???????????????? | | ?????# """" #!==### #???????????????? | | ?????# + %=! = #??????????? | | ?????#??? ! #= ###+####???????????????? | | ??????#####+##%###%! #?????????????????? | | ??????# #=# # !=#?#####???????????? | | ??????# """"%+*#=* k!#? ?? ?????????? | | ??????# """" #u# *=# """" !!!????????? | | ??????# """" #!!=|!g!# """" !!?????????? | | ??????# """" [[ %!! = "" " !!! #???? | | ??????# [[ |! """ ?????? | | ?????##### # % =]] ???????????? | | ?????# "" "h [ !!! #????????????????? | | ?????# "" [[[! []! ### #??????????? | | ?????# """ =A! /h +?????? | | ?????# """ # ## ### ###????????? | | ?????# @ #? #????????????????? | | ?????# ## # ###??#????????????????? | | ?????######??# ?##?????????????????????? | | ?????????????# ????????????????????????? | | ?????????????? ????????????????????????? | | ?????????????? ????????????????????????? | | ?????????????? ????????????????????????? | | ??????????????"????????????????????????? | | ???????????????????????????????????????? | | ???????????????????????????????????????? | | ???????????????????????????????????????? | | ???????????????????????????????????????? | | ???????????????????????????????????????? | | ???????????????????????????????????????? | | ???????????????????????????????????????? | | ???????????????????????????????????????? | | ???????????????????????????????????????? | | ???????????????????????????????????????? | | ???????????????????????????????????????? | | ???????????????????????????????????????? | | ???????????????????????????????????????? | | ???????????????????????????????????????? | | ???????????????????????????????????????? | | ???????????????????????????????????????? | | | +----------------------------------------------------+ Best States ------------- Heat Dissipation 83 Energy Generation 21 Energy Capacity 325 Matter Stores 300 Matter Capacity 300 Sight Range 18 Terrain Scan Density 10 Armor Coverage 900 Resistance: EM 15 Evasion (%) 40 Targeting Accuracy 6 Recoil Reduction 4 Item Schematics ----------------- Huge Storage Unit | -10/Materials | Hacked Insulated Plating | -9/Materials | Scanalyzed Rocket Launcher | -9/Materials | Scanalyzed Plasma Cutter | -9/Materials | Hacked Hvy. Armor Plating | -8/Materials | Scanalyzed Tractor Beam | -8/Materials | Scanalyzed Robot Schematics ------------------ None Fabricated ------------ Nothing Alien Tech Used ----------------- None Achievements -------------- None Challenges ------------ None Game ------ Seed TargetingTargetCyclogen Manual? 0 Play Time 01:41:47 Cumulative 57.5 hours Start 2024.08.27 @ 23:32:48 End 2024.08.28 @ 01:14:52 Sessions 1 Manual Loads 0 Difficulty Rogue Special Mode None Game No. 42 Rogue 42 Adventurer 0 Explorer 0 Win Type - Total 3 Types 3/0/0/0/0/0/0/0/0 Lore% 24 Gallery% 36 Achievement% 32 Wizard Run 0 Options --------- Layout 0 ASCII 0 Keyboard 0 Movement Mouse Keybinds 0 Fullscreen 1 Font 18/SmallcapsGlow Map View 76x50 Zoom Use 0% Tactical HUD 0 Map Filters NONE Filters NONE Steam 1 RUN: ebf9e7cc-1124-42c8-b8dd-dac0de422e75